Cogmind - Beta 9.6 @@@ ROGUE MODE // 2020.06.05 @ 11:19:56 Player: RNGesus Result: Destroyed by D-53 Grenadier with Mini Grenade Launcher Performance ------------- Evolutions (0) 0 Regions Visited (2) 400 Robots Destroyed (28) 140 Value Destroyed (587) 587 Prototype IDs (0) 0 Alien Tech Used (0) 0 Bonus (0) 0 TOTAL SCORE: 1127 Bonus ------- None Cogmind --------- Core Integrity 0/250 Matter 259/300 Energy 265/265 System Corruption 2% Temperature Cool (0) Movement Core (750) Ox14 Location -10/Mines Parts ------- > --- POWER (1) -------- Improved Ion Engine > --- PROPULSION (2) --- (None) > --- UTILITY (2) ------ Large Storage Unit Large Storage Unit > --- WEAPON (2) ------- Shotgun Shotgun > --- INVENTORY (16) --- Improved Ion Engine Light Nuclear Core Light Nuclear Core Improved Heat Sink Medium Storage Unit Improved Signal Interpreter Transport Network Coupler Hardened Light Armor Plating Hardened Light Armor Plating Medium Laser Particle Gun Shotgun Shotgun Grenade Launcher Peak State ------------ > --- POWER ------------ Improved Ion Engine > --- PROPULSION ------- Aluminum Leg Aluminum Leg > --- UTILITY ---------- Large Storage Unit Large Storage Unit > --- WEAPON ----------- Shotgun Shotgun > --- INVENTORY -------- Improved Ion Engine Light Nuclear Core Light Nuclear Core Improved Heat Sink Medium Storage Unit Improved Signal Interpreter Transport Network Coupler Hardened Light Armor Plating Hardened Light Armor Plating Medium Laser Particle Gun Shotgun Shotgun Grenade Launcher [Rating: 12] Favorites ----------- Power Improved Ion Engine Engine Improved Ion Engine Propulsion Aluminum Leg Treads Light Treads Leg Aluminum Leg Utility Large Storage Unit Storage Large Storage Unit Weapon EM Pulse Gun Energy Gun EM Pulse Gun Ballistic Gun Shotgun Launcher Grenade Launcher Build | -11 -10 -10 ------- Run | Scr Mat Min Slots Evolved . | . . . Power . | . . . Propulsion . | . . . Utility . | . . . Weapon . | . . . Parts Attached 22 | 7 12 3 Power 2 | 1 1 . Engine 2 | 1 1 . Core . | . . . Reactor . | . . . Propulsion 5 | 3 2 . Treads 1 | 1 . . Leg 4 | 2 2 . Wheel . | . . . Hover . | . . . Flight . | . . . Utility 4 | 1 3 . Device . | . . . Storage 4 | 1 3 . Processor . | . . . Hackware . | . . . Protection . | . . . Artifact . | . . . Weapon 11 | 2 6 3 Energy Gun 4 | . 4 . Energy Cannon . | . . . Ballistic Gun 4 | 2 . 2 Ballistic Cannon . | . . . Launcher 3 | . 2 1 Special Weapon . | . . . Impact Weapon . | . . . Slashing Weapon . | . . . Piercing Weapon . | . . . Special Melee Weapon . | . . . Unidentified Prototypes . | . . . Parts Lost 4 | . . 4 Power . | . . . Propulsion 2 | . . 2 Utility . | . . . Weapon 2 | . . 2 Highest Loss Streak 2 | . . 2 Average Slot Usage (%) 96 | . 93 99 Engine 14 | . 14 14 Leg 28 | . 28 28 Storage 24 | . 21 28 Energy Gun 14 | . 16 11 Ballistic Gun 13 | . 10 15 Naked Turns . | . . . Heaviest Build 59 | 11 59 45 Greatest Support 20 | 20 20 20 Greatest Overweight (x) 3 | 3 2 2 Average Overweight (x) 1 | . . 2 Largest Inventory Capacity 18 | 6 18 16 Average Capacity 13 | 5 11 16 Most Carried 15 | 3 14 15 Average Carried 10 | 1 6 14 Final Capacity 16 | 6 16 16 Final Carried 14 | 2 14 14 Class Distribution -------------------- 100% | Mutant Dominant Class ---------------- Mutant | -10/Materials Mutant | -10/Mines Resources | -11 -10 -10 ----------- Run | Scr Mat Min Matter Collected 483 | 210 145 128 Remotely . | . . . Salvage Created 723 | . 510 213 Parts 62 | . 45 17 Haulers Intercepted 1 | . 1 . Recyclers Shooed . | . . . Parts Field Recycled . | . . . Retrieved Matter . | . . . Parts Self-Destructed . | . . . Prevented . | . . . Kills | -11 -10 -10 ------- Run | Scr Mat Min Combat Hostiles Destroyed 20 | . 13 7 Guns 11 | . 7 4 AOE 9 | . 6 3 Classes Destroyed 8 | . 8 . Worker 2 | . 2 . Builder 1 | . 1 . Tunneler 1 | . 1 . Hauler 1 | . 1 . Operator 2 | . 2 . Watcher 1 | . 1 . Swarmer 9 | . 6 3 Grunt 11 | . 7 4 Best Kill Streak 5 | . 5 5 Combat Bots Only 5 | . 4 5 Max Kills in Single Turn 3 | . 3 2 Gunslinging 1 | . 1 . Exploded 3 | . 3 2 Melee . | . . . Uniques/NPCs Destroyed . | . . . Combat | -11 -10 -10 -------- Run | Scr Mat Min Damage Taken 769 | . 272 497 Core 259 | . 91 168 Absorbed by Shields . | . . . Core Remaining (%) 100 | 100 . . Volleys Fired 46 | . 27 19 Largest 2 | . 2 2 Hottest 80 | . 80 80 Shots Fired 82 | . 51 31 Gun 77 | . 48 29 Cannon . | . . . Launcher 5 | . 3 2 Special . | . . . Kinetic 32 | . 18 14 Thermal . | . . . Explosive 5 | . 3 2 Electromagnetic 45 | . 30 15 Robot Hit Streak 9 | . 9 6 Robot Miss Streak 3 | . 2 3 Penetration Max . | . . . Secondary Targets 3 | . 2 1 Max Gunslinging Chain 1 | . 1 1 Shots Hit Robots 60 | . 36 24 Core Hits 42 | . 27 15 Critical Hits 1 | . 1 . Critical Kills 1 | . 1 . Critical Parts Destroyed . | . . . Melee Attacks . | . . . Impact . | . . . Slashing . | . . . Piercing . | . . . Sneak Attacks . | . . . Combat Hostiles . | . . . Follow-up Attacks . | . . . Damage Inflicted 1419 | . 841 578 Guns 783 | . 428 355 Cannons . | . . . Explosions 636 | . 413 223 Melee . | . . . Ramming . | . . . Kinetic 289 | . 104 185 Thermal 105 | . 74 31 Explosive 531 | . 339 192 Electromagnetic 494 | . 324 170 Impact . | . . . Slashing . | . . . Piercing . | . . . Highest Corruption 2 | . 2 2 Average Corruption 2 | . 2 2 Corruption Purged . | . . . Effects 15 | . 5 10 Message Errors 6 | . 3 3 Heat Flow Errors 3 | . 1 2 Energy Discharges 2 | . . 2 Data Loss (minor) 2 | . . 2 Targeting Errors 2 | . 1 1 Overload Shots . | . . . Overflow Damage 10 | . . 10 Projectiles . | . . . Explosions 10 | . . 10 Melee . | . . . Knockbacks . | . . . Impact . | . . . Kinetic . | . . . Secondary . | . . . Self-Inflicted Damage 65 | . 31 34 Shots 2 | . 1 1 Rammed . | . . . Targets Rammed . | . . . Kicked . | . . . Crushed . | . . . Highest Temperature 247 | . 247 237 Average Temperature 71 | . 60 85 Received Heat Transfer 252 | . 96 156 Siege Activations . | . . . Robots Corrupted . | . . . Combat Hostiles . | . . . Parts Fried 2 | . 1 1 Impact Corruptions . | . . . Robots Melted . | . . . Combat Hostiles . | . . . Parts Melted . | . . . Heat Transferred 200 | . 150 50 Parts Sabotaged . | . . . Parts Stolen . | . . . Parts Stripped . | . . . Power Chain Reactions 3 | . 2 1 Missiles Intercepted . | . . . Alert | -11 -10 -10 ------- Run | Scr Mat Min Peak Influence 327 | . 327 167 Average Influence 121 | . 143 109 Maximum Alert Level 1 | . 1 . Low Security (%) 85 | 100 70 100 Level 1 14 | . 29 . Level 2 . | . . . Level 3 . | . . . Level 4 . | . . . Level 5 . | . . . High Security . | . . . Max Security . | . . . Squads Dispatched 3 | . 3 . Investigation 1 | . 1 . Extermination . | . . . Reinforcement 2 | . 2 . Assault . | . . . Garrison . | . . . Intercept . | . . . Construction Impeded . | . . . Haulers Reinforced . | . . . Stealth | -11 -10 -10 --------- Run | Scr Mat Min Distress Signals 1 | . 1 . Communications Jammed . | . . . Distress Signals . | . . . Times Spotted 36 | . 28 8 Peak Tracking Total 7 | . 7 3 Tactical Retreats 1 | . 1 . Traps | -11 -10 -10 ------- Run | Scr Mat Min Traps Triggered 2 | . 2 . Indirectly . | . . . Trap Hack Attempts . | . . . Triggered . | . . . Disarmed . | . . . Reprogrammed . | . . . Reused . | . . . Traps Extracted . | . . . Installed . | . . . Triggered 1 | . . 1 Machines | -11 -10 -10 ---------- Run | Scr Mat Min Machines Disabled 2 | . 2 . Max in Single Turn 1 | . 1 . Machines Sabotaged . | . . . Garrisons Compromised . | . . . Overloaded Fab Kills . | . . . Fab Network Shutdowns . | . . . Hacking | -11 -10 -10 --------- Run | Scr Mat Min Machines Accessed 2 | . 2 . Terminals 2 | . 2 . Fabricators . | . . . Repair Stations . | . . . Recycling Units . | . . . Scanalyzers . | . . . Garrison Access . | . . . Total Hacks 3 | . 3 . Successful 3 | . 3 . Failed . | . . . Catastrophic . | . . . Database Lockouts . | . . . Manual 3 | . 3 . Terminals 3 | . 3 . Fabricators . | . . . Repair Stations . | . . . Recycling Units . | . . . Scanalyzers . | . . . Garrison Access . | . . . Terminal Hacks 2 | . 2 . Branch Access Points 1 | . 1 . Hauler Manifests 1 | . 1 . Fabricator Hacks . | . . . Repair Station Hacks . | . . . Recycling Unit Hacks . | . . . Scanalyzer . | . . . Garrison Access Hacks . | . . . Unauthorized Hacks 1 | . 1 . Terminals 1 | . 1 . Operators 1 | . 1 . Fabricators . | . . . Repair Stations . | . . . Recycling Units . | . . . Scanalyzers . | . . . Garrison Access . | . . . Data Cores Recovered . | . . . Used . | . . . Hacking Detections 1 | . 1 . Full Trace Events . | . . . Feedback Events . | . . . Feedback Blocked . | . . . Robot Schematics Acquired . | . . . Robots Built . | . . . Matter . | . . . Time . | . . . Total Robot Build Rating . | . . . Part Schematics Acquired . | . . . Parts Built . | . . . Matter . | . . . Time . | . . . Total Part Build Rating . | . . . Parts Repaired . | . . . Time . | . . . Parts Recycled . | . . . Recycled Matter . | . . . Retrieved Matter . | . . . Retrieved Components . | . . . Parts Scanalyzed . | . . . Part Schematics Acquired . | . . . Parts Damaged . | . . . Bothacking | -11 -10 -10 ------------ Run | Scr Mat Min Used RIF Installer . | . . . Robots Hacked . | . . . Non-combat . | . . . Combat . | . . . Robot Hacks Applied . | . . . Relay Couplers Released . | . . . Robots Rewired . | . . . Allies Hacked . | . . . Hacks Repelled . | . . . Allies | -11 -10 -10 -------- Run | Scr Mat Min Total Allies . | . . . Largest Group . | . . . Highest-Rated Group . | . . . Highest-Rated Ally . | . . . Total Orders . | . . . Ally Attacks . | . . . Total Damage . | . . . Kills . | . . . Allies Corrupted . | . . . Allies Melted . | . . . Intel | -11 -10 -10 ------- Run | Scr Mat Min Robot Analysis Total . | . . . Derelict Logs Recovered 1 | . . 1 Drone Launches . | . . . Drone Recoveries . | . . . Exploration | -11 -10 -10 ------------- Run | Scr Mat Min Turns Passed 1562 | 67 779 716 Spaces Moved 845 | 47 446 352 Core 10 | 10 . . Treads 3 | 3 . . Legs 832 | 34 446 352 Wheels . | . . . Hover . | . . . Flight . | . . . Fastest Speed 50 | 50 120 180 Average Speed 158 | 115 147 180 Slowest Speed 200 | 200 180 180 Overloaded Moves . | . . . Propulsion Burnouts . | . . . Robots Hopped . | . . . Cave-ins Triggered . | . . . Exploration Rate (%) 53 | 4 85 71 Regions Visited 2 Branch Regions 1 Pre-discovered Areas . | . . . Known Exits Taken 1 | . 1 . Unknown Exits Taken 1 | 1 . . Scrap Searched . | . . . Spaces Dug 11 | . 11 . Terrain Destroyed 46 | . 31 15 Melee . | . . . Projectile . | . . . AOE 46 | . 31 15 Actions | -11 -10 -10 --------- Run | Scr Mat Min Total 982 | 57 522 403 Wait 41 | . 14 27 Move 843 | 46 445 352 Hop . | . . . Pick Up 18 | 2 14 2 Fast Attach 11 | 7 4 . Attach 2 | . . 2 Detach 2 | 1 1 . Swap 9 | . 8 1 Drop 10 | 1 9 . Fire 46 | . 27 19 Melee . | . . . Ram . | . . . Kick . | . . . Crush . | . . . Escape Stasis . | . . . Rewire . | . . . Trap . | . . . Miscellaneous . | . . . Route ------- -11/Scrapyard -10/Materials (discovered 3 exits: [*Mat x2] / *Min) -10/Mines (discovered 1 exit: [*Exi]) History --------- Turn | Location | Event 30 | -11/Scrapyard | Discovered new exit (range 15) 68 | -11/Scrapyard | Entered Materials 250 | -10/Materials | Discovered new exit (range 4) 305 | -10/Materials | Build established: Mutant 507 | -10/Materials | Discovered new exit (range 5) 635 | -10/Materials | Identified exit to Mines 847 | -10/Materials | Entered Mines 848 | -10/Mines | Assembled infested the area 854 | -10/Mines | Core integrity fell below 50% 1098 | -10/Mines | Deemed a non-threat by the Exiles lab entrance 1100 | -10/Mines | Discovered new exit (range 5) 1431 | -10/Mines | Core integrity fell below 20% 1563 | -10/Mines | Destroyed by D-53 Grenadier with Mini Grenade Launcher Last Messages --------------- 01190_ K-01 Serf collects debris. 01219_ K-01 Serf cleans the Seismic Survey Station. 01226_ K-01 Serf collects debris. 01237_ The unstable cave ceiling collapses. 01261_ System corrupted: Energy discharge (-79). 01323_ System corrupted: Component data lost. 01434_ G-47 Trooper destroyed. 01440_ Chain reaction triggered in Ion Engine. 01440_ EM Pulse Gun destroyed. 01440_ Destroyed EM Pulse Gun. 01443_ G-34 Mercenary destroyed. 01445_ Acquired 23 matter. 01457_ S-10 Pest destroyed. 01475_ Acquired 5 matter. 01514_ SGA6KZSVRVGQDUUNVBX>209 01544_ A derelict is hurriedly installing traps. 01546_ ZD-HMB(g): "Hehe, this'll put a wrench in their mining defense operations..." 01546_ ZD-HMB(g) slips into the shadows. 01561_ Aluminum Leg destroyed. Map ----- +----------------------------------------------------+ | | | | | | | | | | | ?????????????????????????????????????????????????? | | ?????????????????????????????????????????????????? | | ????????????????????????????????????#########????? | | ?????????????????????????############ ## ##???? | | ????????????????????????## #"%" #???? | | ???????????????????????## [%! ##??? | | ???????????????????????# ["# ##?? | | ???????????????????????# "##### ### | | ???????????????????????# ###???### # | | ???????????????????????# #???????# # | | ???????????????????????## #???????## # | | ????????????????????????## ##????????# [% ## | | ??????????????????#??????####?????????# [%= ##? | | ??????????????????# ??????????????????# ##?? | | ??????????????????# ?????????????????# # ##?? | | ??????????????????# ########????###??###### ### | | ??????????????????# ##??# #???????# ## | | ??????????????????# dd ### #???????## | | ???????????????????# #???????## | | ??????????????????## #?????#### | | ?????????????????## @ #????## | | ????????????????## #????# | | ???????????????# ##????# # | | ???????????????# ## #?????## #### | | ???????????????# # #??????# ##?## | | ?????????????????# ##?????## ##??# | | ???????????????# # # ###????# ###### | | ???????????????# ### ##???# | | ?????????????? ??## # r ##??# ###### | | ????????????? ? ????? ## r #### ####?## | | ?????????????? ?????## % #??# | | ?????????????? ???????# ######## #??? | | ????????????????## ???????# ## ##??????# #??? | | ?????????????????? ????????####### #???????# #??? | | ?????????????????????????????????#%%#???????# #??? | | ?????????????????????????????????# #???????# #??? | | ?????????????????????????????????# #???????# ###? | | ?????????????????????????????????# %###?????# # | | ?????????????????????????????????# ##????#### # | | ?????????????????????????????????# ##??????# # | | ???????????????????????????????### ##?????# # | | ???????????????????????????????# #?????# # | | ???????????????????????????????# % ##????# # | | ????????????????????????????????## ##???# # | | ????????????????????????????????# # ##### # | +----------------------------------------------------+ Best States ------------- Heat Dissipation 25 Energy Generation 12 Energy Capacity 265 Matter Stores 300 Matter Capacity 300 Sight Range 16 Terrain Scan Density 10 Evasion (%) 40 Recoil Reduction 1 Item Schematics ----------------- None Robot Schematics ------------------ None Fabricated ------------ Nothing Alien Tech Used ----------------- None Achievements -------------- None Challenges ------------ None Game ------ Seed WarpHardcellGenerator Manual? 0 Play Time 00:08:18 Cumulative 236.2 hours Start 2020.06.05 @ 11:13:32 End 2020.06.05 @ 11:19:56 Sessions 1 Manual Loads 0 Difficulty Rogue Special Mode None Game No. 387 Rogue 387 Adventurer 0 Explorer 0 Win Type - Total 5 Types 3/0/1/1/0/0/0 Lore% 79 Gallery% 80 Achievement% 60 Wizard Run 0 Options --------- ASCII 0 Keyboard 1 Movement Numpad Keybinds 0 Fullscreen 2 Font 18/X11Bold Map View 76x50 Tactical HUD 1 Map Filters NONE Filters NONE Steam 1 RUN: 99b054d0-93e7-4712-a412-5b8576b875ab